[Event "ONJK DE"]
[Site "Enschede, Netherlands"]
[Date "2022.08.12"]
[Round "9.8"]
[White "Mittal, Aashray"]
[Black "Koppenens, Oscar"]
[Result "0-1"]
[TimeControl "40min + 30sec/move"]
[WhiteElo "1153"]
[BlackElo "1266"]

1. e4 {[%clk 00:41:00]} e6 {[%clk 00:40:56]} {[%emt 00:00:05]} 2. d4 {[%clk
00:41:27]} {[%emt 00:00:03]} d5 {[%clk 00:41:22]} {[%emt 00:00:04]} 3. e5
{[%clk 00:41:54]} {[%emt 00:00:03]} c5 {[%clk 00:41:46]} {[%emt 00:00:06]} 4.
c3 {[%clk 00:42:20]} {[%emt 00:00:03]} Nc6 {[%clk 00:42:12]} {[%emt 00:00:05]}
5. Nf3 {[%clk 00:42:46]} {[%emt 00:00:04]} Qb6 {[%clk 00:42:36]} {[%emt
00:00:06]} 6. Bd3 {[%clk 00:43:10]} {[%emt 00:00:06]} cxd4 {[%clk 00:42:27]}
{[%emt 00:00:39]} 7. cxd4 {[%clk 00:42:53]} {[%emt 00:00:47]} Bb4+ {[%clk
00:42:27]} {[%emt 00:00:30]} 8. Nc3 {[%clk 00:43:05]} {[%emt 00:00:18]} Bxc3+
{[%clk 00:42:27]} {[%emt 00:00:30]} 9. bxc3 {[%clk 00:43:29]} {[%emt 00:00:06]}
f6 {[%clk 00:42:47]} {[%emt 00:00:10]} 10. Bf4 {[%emt 00:05:29]} g6 {[%clk
00:38:01]} {[%emt 00:05:14]} 11. exf6 {[%clk 00:35:49]} {[%emt 00:03:12]} Nxf6
{[%clk 00:38:05]} {[%emt 00:00:26]} 12. Bh6 {[%clk 00:31:04]} {[%emt 00:05:15]}
Qc7 {[%clk 00:36:51]} {[%emt 00:01:43]} 13. O-O {[%clk 00:28:37]} {[%emt
00:02:58]} Qe7 {[%clk 00:33:26]} {[%emt 00:03:46]} 14. Re1 {[%clk 00:24:19]}
{[%emt 00:04:59]} Bd7 {[%clk 00:33:00]} {[%emt 00:00:55]} 15. Rb1 {[%clk
00:24:33]} {[%emt 00:00:16]} O-O-O {[%clk 00:32:08]} {[%emt 00:01:22]} 16. Qb3
{[%clk 00:23:16]} {[%emt 00:01:47]} Na5 {[%clk 00:28:03]} {[%emt 00:04:35]} 17.
Qb2 {[%clk 00:22:32]} {[%emt 00:01:13]} Bc6 {[%clk 00:24:32]} {[%emt 00:04:02]}
18. Ne5 {[%clk 00:21:08]} {[%emt 00:01:54]} b6 {[%clk 00:22:46]} {[%emt
00:02:16]} 19. Nxc6 {[%clk 00:20:42]} {[%emt 00:00:55]} Nxc6 {[%clk 00:23:09]}
{[%emt 00:00:07]} 20. Ba6+ {[%clk 00:20:50]} {[%emt 00:00:21]} Kb8 {[%clk
00:23:11]} {[%emt 00:00:28]} 21. Qb5 {[%clk 00:19:52]} {[%emt 00:01:29]} Qd6
{[%clk 00:22:23]} {[%emt 00:00:58]} 22. Bg7 {[%emt 00:04:03]} Rdf8 {[%clk
00:21:15]} 23. Bxh8 {[%clk 00:17:47]} {[%emt 00:01:00]} Rxh8 {[%clk 00:20:53]}
{[%emt 00:00:52]} 24. Qe2 {[%clk 00:17:17]} {[%emt 00:01:00]} Ne4 {[%clk
00:18:23]} {[%emt 00:03:00]} 25. Qc2 {[%clk 00:15:00]} {[%emt 00:02:47]} Qc7
{[%clk 00:17:33]} {[%emt 00:01:20]} 26. Qd3 {[%clk 00:12:43]} {[%emt 00:02:47]}
e5 {[%clk 00:15:53]} {[%emt 00:02:11]} 27. f3 {[%clk 00:12:33]} {[%emt
00:00:39]} Nf6 {[%clk 00:14:16]} {[%emt 00:02:08]} 28. dxe5 {[%clk 00:11:09]}
{[%emt 00:01:54]} Nxe5 {[%clk 00:14:41]} {[%emt 00:00:05]} 29. Qd4 {[%emt
00:02:19]} Ned7 {[%clk 00:11:54]} {[%emt 00:01:39]} 30. Bb5 {[%clk 00:10:53]}
{[%emt 00:00:35]} Rd8 {[%clk 00:11:48]} {[%emt 00:00:36]} 31. Bxd7 {[%clk
00:10:31]} {[%emt 00:00:51]} Nxd7 {[%clk 00:11:32]} {[%emt 00:00:47]} 32. Re7
{[%clk 00:09:54]} {[%emt 00:01:07]} Qd6 {[%clk 00:10:36]} {[%emt 00:01:26]} 33.
Rxh7 {[%clk 00:09:45]} {[%emt 00:00:38]} Re8 {[%clk 00:10:27]} {[%emt
00:00:40]} 34. Qa4 {[%clk 00:09:26]} {[%emt 00:00:49]} Qe5 {[%clk 00:09:32]}
{[%emt 00:01:24]} 35. h3 {[%clk 00:08:43]} {[%emt 00:01:14]} Re7 {[%clk
00:09:08]} {[%emt 00:00:54]} 36. Rxe7 {[%clk 00:08:57]} {[%emt 00:00:15]} Qxe7
{[%clk 00:09:34]} {[%emt 00:00:05]} 37. Qf4+ {[%clk 00:09:09]} {[%emt
00:00:18]} Kb7 {[%clk 00:09:45]} {[%emt 00:00:19]} 38. Qd4 {[%clk 00:09:09]}
{[%emt 00:00:29]} Qe6 {[%clk 00:08:36]} {[%emt 00:01:40]} 39. Qg4 {[%clk
00:09:00]} {[%emt 00:00:38]} Qe3+ {[%clk 00:07:15]} {[%emt 00:01:51]} 40. Kh1
{[%clk 00:09:17]} {[%emt 00:00:14]} Nc5 {[%clk 00:05:25]} {[%emt 00:02:19]} 41.
Qxg6 {[%clk 00:09:17]} {[%emt 00:00:41]} Qxc3 {[%clk 00:05:47]} {[%emt
00:00:08]} 42. Qf7+ {[%clk 00:09:39]} {[%emt 00:00:08]} Ka6 {[%clk 00:06:08]}
{[%emt 00:00:07]} 43. Qxd5 {[%clk 00:09:50]} {[%emt 00:00:21]} Qc2 {[%clk
00:06:09]} {[%emt 00:00:28]} 44. Qd1 {[%clk 00:09:41]} {[%emt 00:00:40]} Qg6
{[%clk 00:06:19]} {[%emt 00:00:16]} 45. Qf1+ {[%clk 00:09:23]} {[%emt
00:00:52]} Kb7 {[%clk 00:06:42]} {[%emt 00:00:06]} 46. f4 {[%clk 00:09:37]}
{[%emt 00:00:17]} Nd3 {[%clk 00:06:04]} {[%emt 00:01:08]} 47. Qf3+ {[%clk
00:09:38]} {[%emt 00:00:29]} Kb8 {[%clk 00:06:28]} {[%emt 00:00:06]} 48. f5
{[%clk 00:09:56]} {[%emt 00:00:12]} Qd6 {[%clk 00:06:36]} {[%emt 00:00:22]} 49.
g4 {[%clk 00:09:03]} {[%emt 00:01:24]} Qd4 {[%clk 00:06:26]} {[%emt 00:00:40]}
50. Qg3+ {[%clk 00:09:04]} {[%emt 00:00:28]} Kc8 {[%clk 00:06:38]} {[%emt
00:00:15]} 51. Qf3 {[%clk 00:08:32]} {[%emt 00:01:04]} Kb8 {[%clk 00:06:25]}
{[%emt 00:00:43]} 52. f6 {[%clk 00:08:32]} {[%emt 00:00:30]} Ne5 {[%clk
00:06:33]} {[%emt 00:00:21]} 53. f7 {[%clk 00:08:49]} {[%emt 00:00:14]} Nxf7
{[%clk 00:06:42]} {[%emt 00:00:21]} 54. Qxf7 {[%clk 00:09:13]} {[%emt
00:00:05]} Qe4+ {[%clk 00:07:06]} {[%emt 00:00:07]} 55. Kh2 {[%clk 00:09:38]}
{[%emt 00:00:05]} Qxb1 {[%clk 00:07:23]} {[%emt 00:00:13]} 56. Qg8+ {[%clk
00:09:41]} {[%emt 00:00:28]} Kc7 {[%clk 00:07:29]} {[%emt 00:00:22]} 57. Qf7+
{[%clk 00:09:58]} {[%emt 00:00:14]} Kb8 {[%clk 00:07:50]} {[%emt 00:00:08]} 58.
Qf4+ {[%clk 00:10:03]} {[%emt 00:00:26]} Kc8 {[%clk 00:07:56]} {[%emt
00:00:21]} 59. Qf5+ {[%clk 00:10:28]} {[%emt 00:00:08]} Qxf5 {[%clk 00:08:16]}
{[%emt 00:00:09]} 60. gxf5 {[%clk 00:10:57]} Kd7 {[%clk 00:08:40]} {[%emt
00:00:07]} 61. Kg3 {[%clk 00:11:22]} {[%emt 00:00:05]} Ke7 {[%clk 00:09:05]}
{[%emt 00:00:04]} 62. Kg4 {[%clk 00:11:48]} {[%emt 00:00:04]} b5 {[%clk
00:09:25]} {[%emt 00:00:11]} 63. h4 {[%clk 00:12:04]} {[%emt 00:00:14]} Kf6
{[%clk 00:09:40]} {[%emt 00:00:15]} 64. h5 {[%clk 00:12:30]} {[%emt 00:00:03]}
a5 {[%clk 00:09:58]} {[%emt 00:00:13]} 65. h6 {[%clk 00:12:39]} {[%emt
00:00:21]} a4 {[%clk 00:10:15]} {[%emt 00:00:13]} 66. Kf4 {[%clk 00:12:26]}
{[%emt 00:00:42]} b4 {[%clk 00:10:25]} {[%emt 00:00:21]} 67. Ke3 {[%clk
00:12:51]} {[%emt 00:00:05]} b3 {[%clk 00:10:37]} {[%emt 00:00:18]} 68. axb3
{[%clk 00:12:55]} {[%emt 00:00:26]} a3 {[%clk 00:11:03]} {[%emt 00:00:04]} 69.
b4 {[%clk 00:12:42]} {[%emt 00:00:43]} a2 {[%clk 00:11:27]} {[%emt 00:00:06]}
70. b5 {[%clk 00:13:08]} {[%emt 00:00:04]} a1=Q {[%clk 00:11:51]} {[%emt
00:00:06]} 71. Ke4 {[%clk 00:13:18]} {[%emt 00:00:19]} Qe5+ {[%clk 00:12:14]}
{[%emt 00:00:05]} 72. Kd3 {[%clk 00:13:43]} {[%emt 00:00:08]} Qxb5+ {[%clk
00:12:37]} {[%emt 00:00:06]} 73. Kd4 {[%clk 00:14:06]} {[%emt 00:00:08]} Qxf5
{[%clk 00:13:02]} {[%emt 00:00:05]} 74. h7 {[%clk 00:14:31]} {[%emt 00:00:05]}
Qxh7 {[%clk 00:13:29]} {[%emt 00:00:03]} 75. Kd5 {[%clk 00:14:55]} {[%emt
00:00:06]} Qd3+ {[%clk 00:13:53]} {[%emt 00:00:06]} 76. Kc5 {[%clk 00:15:21]}
{[%emt 00:00:04]} Ke6 {[%clk 00:14:18]} {[%emt 00:00:04]} 77. Kc6 {[%clk
00:15:46]} {[%emt 00:00:06]} Qd5+ {[%clk 00:14:43]} {[%emt 00:00:06]} 78. Kc7
{[%clk 00:16:10]} {[%emt 00:00:05]} Qd6+ {[%clk 00:15:08]} {[%emt 00:00:05]} 79.
Kb7 {[%clk 00:16:35]} {[%emt 00:00:05]} Kd7 {[%clk 00:15:29]} {[%emt 00:00:09]}
80. Ka8 {[%clk 00:16:55]} {[%emt 00:00:09]} Qb4 {[%clk 00:15:55]} {[%emt
00:00:05]} 81. Ka7 {[%clk 00:17:20]} {[%emt 00:00:04]} Kc7 {[%clk 00:16:20]}
{[%emt 00:00:05]} 82. Ka6 {[%clk 00:17:46]} {[%emt 00:00:05]} Qa4# {[%clk
00:16:16]} {[%emt 00:00:03]} 0-1

[Event "ONJK DE"]
[Site "Enschede, Netherlands"]
[Date "2022.08.12"]
[Round "10.1"]
[White "Vogels, Mathijs"]
[Black "Groenewoud, Joel"]
[Result "0-1"]
[TimeControl "40min + 30sec/move"]
[WhiteElo "1283"]
[BlackElo "1497"]

1. e4 {[%clk 00:40:59]} c6 {[%clk 00:40:56]} {[%emt 00:00:05]} 2. d4 {[%clk
00:41:16]} {[%emt 00:00:12]} d5 {[%clk 00:41:19]} {[%emt 00:00:07]} 3. e5
{[%clk 00:41:40]} {[%emt 00:00:06]} c5 {[%clk 00:41:48]} {[%emt 00:00:02]} 4.
c3 {[%clk 00:41:36]} {[%emt 00:00:34]} Nc6 {[%clk 00:42:13]} {[%emt 00:00:04]}
5. Nf3 {[%clk 00:41:58]} {[%emt 00:00:08]} cxd4 {[%clk 00:42:37]} {[%emt
00:00:05]} 6. cxd4 {[%clk 00:42:16]} {[%emt 00:00:12]} Bg4 {[%clk 00:42:59]}
{[%emt 00:00:09]} 7. Bb5 {[%clk 00:42:34]} {[%emt 00:00:12]} e6 {[%clk
00:43:15]} {[%emt 00:00:15]} 8. Bd2 {[%clk 00:41:48]} {[%emt 00:01:15]} Qb6
{[%clk 00:42:44]} {[%emt 00:01:02]} 9. Nc3 {[%clk 00:41:31]} {[%emt 00:00:47]}
Nge7 {[%clk 00:42:43]} {[%emt 00:00:30]} 10. h3 {[%clk 00:39:52]} {[%emt
00:02:10]} Bxf3 {[%clk 00:42:48]} {[%emt 00:00:25]} 11. Qxf3 {[%clk 00:40:02]}
{[%emt 00:00:19]} Qxd4 {[%clk 00:40:32]} {[%emt 00:02:46]} 12. Bxc6+ {[%clk
00:39:27]} {[%emt 00:01:06]} bxc6 {[%clk 00:38:59]} {[%emt 00:02:02]} 13. Qe2
{[%clk 00:38:22]} {[%emt 00:01:35]} Ng6 {[%clk 00:38:42]} {[%emt 00:00:47]} 14.
O-O {[%clk 00:38:23]} {[%emt 00:00:29]} Qxe5 {[%clk 00:38:30]} {[%emt
00:00:43]} 15. Qxe5 {[%clk 00:37:57]} {[%emt 00:00:55]} Nxe5 {[%clk 00:38:46]}
{[%emt 00:00:14]} 16. Bf4 {[%clk 00:37:58]} {[%emt 00:00:29]} Ng6 {[%clk
00:38:30]} {[%emt 00:00:46]} 17. Be3 {[%clk 00:37:58]} {[%emt 00:00:30]} Bd6
{[%clk 00:38:31]} {[%emt 00:00:29]} 18. f4 {[%clk 00:38:06]} {[%emt 00:00:21]}
Ne7 {[%clk 00:38:27]} {[%emt 00:00:35]} 19. Bd4 {[%clk 00:38:08]} {[%emt
00:00:28]} Nf5 {[%clk 00:38:12]} {[%emt 00:00:45]} 20. Bf2 {[%clk 00:37:45]}
{[%emt 00:00:53]} h5 {[%clk 00:37:27]} {[%emt 00:01:15]} 21. Ne2 {[%clk
00:37:07]} {[%emt 00:01:09]} c5 {[%clk 00:36:08]} {[%emt 00:01:48]} 22. Rac1
{[%clk 00:37:20]} {[%emt 00:00:17]} c4 {[%clk 00:35:28]} {[%emt 00:01:10]} 23.
b3 {[%clk 00:37:30]} {[%emt 00:00:21]} cxb3 {[%clk 00:34:58]} {[%emt 00:00:59]}
24. axb3 {[%clk 00:37:53]} {[%emt 00:00:07]} Kd7 {[%clk 00:34:44]} {[%emt
00:00:39]} 25. Rc2 {[%clk 00:37:47]} {[%emt 00:00:41]} a5 {[%clk 00:34:37]}
{[%emt 00:00:37]} 26. Rfc1 {[%clk 00:37:53]} {[%emt 00:00:23]} Rhc8 {[%clk
00:34:34]} {[%emt 00:00:33]} 27. Rxc8 {[%clk 00:36:42]} {[%emt 00:01:42]} Rxc8
{[%clk 00:34:47]} {[%emt 00:00:17]} 28. Ra1 {[%clk 00:36:54]} {[%emt 00:00:18]}
Rc2 {[%clk 00:33:49]} {[%emt 00:01:28]} 29. Kf1 {[%clk 00:36:48]} {[%emt
00:00:35]} Bc5 {[%clk 00:33:05]} {[%emt 00:01:15]} 30. Bxc5 {[%clk 00:36:49]}
{[%emt 00:00:29]} Rxc5 {[%clk 00:33:22]} {[%emt 00:00:13]} 31. Rb1 {[%clk
00:35:49]} {[%emt 00:01:30]} h4 {[%clk 00:33:07]} {[%emt 00:00:45]} 32. Ke1
{[%clk 00:34:10]} {[%emt 00:02:09]} f6 {[%clk 00:32:25]} {[%emt 00:01:12]} 33.
Kd2 {[%clk 00:33:50]} {[%emt 00:00:50]} e5 {[%clk 00:32:29]} {[%emt 00:00:26]}
34. fxe5 {[%clk 00:33:57]} {[%emt 00:00:23]} fxe5 {[%clk 00:32:46]} {[%emt
00:00:13]} 35. Rf1 {[%clk 00:34:14]} {[%emt 00:00:14]} Ke6 {[%clk 00:32:40]}
{[%emt 00:00:35]} 36. Re1 {[%clk 00:34:07]} {[%emt 00:00:37]} Kd6 {[%clk
00:31:10]} {[%emt 00:02:00]} 37. Rf1 {[%clk 00:34:28]} {[%emt 00:00:09]} g6
{[%clk 00:30:37]} {[%emt 00:01:02]} 38. Rd1 {[%clk 00:34:18]} {[%emt 00:00:41]}
d4 {[%clk 00:30:39]} {[%emt 00:00:28]} 39. Rf1 {[%clk 00:33:59]} {[%emt
00:00:49]} Kd5 {[%clk 00:30:06]} {[%emt 00:01:03]} 40. Nc1 {[%clk 00:33:39]}
{[%emt 00:00:49]} Ne3 {[%clk 00:29:43]} {[%emt 00:00:53]} 41. Rf8 {[%clk
00:30:34]} {[%emt 00:03:36]} Rc2+ {[%clk 00:30:01]} {[%emt 00:00:12]} 42. Ke1
{[%clk 00:30:43]} {[%emt 00:00:20]} Rxc1+ {[%clk 00:30:26]} {[%emt 00:00:06]}
43. Ke2 {[%clk 00:30:53]} {[%emt 00:00:20]} Ke4 {[%clk 00:30:44]} {[%emt
00:00:12]} 44. Rf3 {[%clk 00:30:50]} {[%emt 00:00:33]} d3+ {[%clk 00:30:44]}
{[%emt 00:00:30]} 45. Kd2 {[%clk 00:30:53]} {[%emt 00:00:24]} Rc2+ {[%emt
00:00:27]} 46. Ke1 {[%clk 00:31:04]} Re2# {[%clk 00:31:36]} {[%emt 00:00:02]}
0-1

[Event "ONJK DE"]
[Site "Enschede, Netherlands"]
[Date "2022.08.12"]
[Round "10.2"]
[White "Terlouw, Wouter"]
[Black "Frederiks, Jesse"]
[Result "1-0"]
[TimeControl "40min + 30sec/move"]
[WhiteElo "1720"]
[BlackElo "1302"]

1. d4 {[%clk 00:40:59]} d5 {[%clk 00:40:53]} {[%emt 00:00:07]} 2. c4 {[%clk
00:41:27]} {[%emt 00:00:04]} c6 {[%clk 00:41:18]} {[%emt 00:00:04]} 3. Nc3
{[%clk 00:41:53]} {[%emt 00:00:04]} Nf6 {[%clk 00:41:28]} {[%emt 00:00:14]} 4.
Nf3 {[%clk 00:42:17]} {[%emt 00:00:10]} Bf5 {[%clk 00:41:42]} {[%emt 00:00:16]}
5. cxd5 {[%clk 00:42:41]} {[%emt 00:00:08]} cxd5 {[%clk 00:41:59]} {[%emt
00:00:12]} 6. Qb3 {[%clk 00:43:07]} {[%emt 00:00:05]} Qd7 {[%clk 00:41:37]}
{[%emt 00:00:52]} 7. e4 {[%clk 00:42:43]} {[%emt 00:00:54]} Bxe4 {[%clk
00:40:28]} {[%emt 00:01:38]} 8. Bb5 {[%clk 00:42:34]} {[%emt 00:00:39]} Nc6
{[%clk 00:40:35]} {[%emt 00:00:24]} 9. Ne5 {[%clk 00:42:22]} {[%emt 00:00:41]}
Qc7 {[%clk 00:39:31]} {[%emt 00:01:35]} 10. Nxe4 {[%clk 00:41:18]} {[%emt
00:01:35]} Nxe4 {[%clk 00:38:23]} {[%emt 00:01:37]} 11. Qxd5 {[%clk 00:40:18]}
{[%emt 00:01:30]} Nd6 {[%clk 00:37:51]} {[%emt 00:00:59]} 12. Bxc6+ {[%clk
00:35:51]} {[%emt 00:05:00]} bxc6 {[%clk 00:37:51]} {[%emt 00:00:30]} 13. Qxc6+
{[%clk 00:36:01]} {[%emt 00:00:21]} Qxc6 {[%clk 00:38:13]} {[%emt 00:00:07]} 14.
Nxc6 {[%clk 00:36:26]} {[%emt 00:00:06]} Rc8 {[%clk 00:36:50]} {[%emt
00:01:52]} 15. Ne5 {[%clk 00:35:46]} {[%emt 00:01:07]} g6 {[%clk 00:35:47]}
{[%emt 00:01:36]} 16. Be3 {[%clk 00:34:40]} {[%emt 00:01:33]} Bg7 {[%clk
00:35:26]} {[%emt 00:00:53]} 17. O-O {[%clk 00:34:27]} {[%emt 00:00:45]} O-O
{[%clk 00:34:38]} {[%emt 00:01:18]} 18. Rac1 {[%clk 00:33:38]} {[%emt
00:01:19]} Rfd8 {[%clk 00:33:13]} {[%emt 00:01:51]} 19. Rxc8 {[%clk 00:32:13]}
{[%emt 00:01:58]} Rxc8 {[%clk 00:33:21]} {[%emt 00:00:22]} 20. Rc1 {[%clk
00:32:02]} {[%emt 00:00:30]} Rxc1+ {[%clk 00:33:02]} {[%emt 00:01:00]} 21. Bxc1
{[%clk 00:32:27]} {[%emt 00:00:06]} Nf5 {[%clk 00:32:38]} {[%emt 00:00:52]} 22.
Be3 {[%clk 00:31:27]} {[%emt 00:01:31]} Nxe3 {[%clk 00:32:30]} {[%emt
00:00:37]} 23. fxe3 {[%clk 00:31:52]} {[%emt 00:00:06]} Bxe5 {[%clk 00:32:33]}
{[%emt 00:00:27]} 24. dxe5 {[%clk 00:32:18]} {[%emt 00:00:05]} Kg7 {[%clk
00:32:23]} {[%emt 00:00:39]} 25. Kf2 {[%clk 00:32:14]} {[%emt 00:00:34]} Kh6
{[%clk 00:32:30]} {[%emt 00:00:23]} 26. Kf3 {[%clk 00:32:01]} {[%emt 00:00:44]}
g5 {[%clk 00:31:50]} {[%emt 00:01:09]} 27. g4 {[%clk 00:31:55]} {[%emt
00:00:36]} Kg6 {[%clk 00:32:03]} {[%emt 00:00:16]} 28. Ke4 {[%clk 00:32:09]}
{[%emt 00:00:17]} h5 {[%clk 00:31:33]} {[%emt 00:01:00]} 29. h3 {[%clk
00:32:33]} {[%emt 00:00:06]} hxg4 {[%clk 00:31:27]} {[%emt 00:00:36]} 30. hxg4
{[%clk 00:32:56]} {[%emt 00:00:07]} e6 {[%clk 00:31:16]} {[%emt 00:00:41]} 31.
b4 {[%clk 00:33:03]} {[%emt 00:00:24]} f5+ {[%clk 00:31:01]} {[%emt 00:00:45]}
32. exf6 {[%clk 00:33:28]} {[%emt 00:00:05]} Kxf6 {[%clk 00:31:22]} {[%emt
00:00:09]} 33. b5 {[%clk 00:33:37]} {[%emt 00:00:21]} Ke7 {[%clk 00:29:41]}
{[%emt 00:02:10]} 34. Ke5 {[%clk 00:33:48]} {[%emt 00:00:20]} 1-0

[Event "ONJK DE"]
[Site "Enschede, Netherlands"]
[Date "2022.08.12"]
[Round "10.3"]
[White "Rooijakkers, Liam"]
[Black "Declerck, Adriaan"]
[Result "1/2-1/2"]
[TimeControl "40min + 30sec/move"]
[WhiteElo "1266"]
[BlackElo "1371"]

1. e4 {[%clk 00:40:58]} {[%emt 00:00:02]} e6 {[%clk 00:40:52]} {[%emt
00:00:08]} 2. d4 {[%clk 00:41:21]} {[%emt 00:00:07]} d5 {[%clk 00:41:19]}
{[%emt 00:00:04]} 3. Nc3 {[%clk 00:41:48]} {[%emt 00:00:03]} Bb4 {[%clk
00:41:34]} {[%emt 00:00:15]} 4. e5 {[%clk 00:42:10]} {[%emt 00:00:07]} c5
{[%clk 00:42:01]} {[%emt 00:00:03]} 5. Nf3 {[%clk 00:42:04]} {[%emt 00:00:36]}
cxd4 {[%clk 00:42:16]} {[%emt 00:00:15]} 6. Qxd4 {[%clk 00:42:09]} {[%emt
00:00:26]} Nc6 {[%clk 00:42:14]} {[%emt 00:00:32]} 7. Bb5 {[%clk 00:42:18]}
{[%emt 00:00:21]} Nge7 {[%clk 00:42:14]} {[%emt 00:00:29]} 8. Bg5 {[%clk
00:41:55]} {[%emt 00:00:52]} Ba5 {[%clk 00:40:47]} {[%emt 00:01:59]} 9. Qa4
{[%clk 00:38:39]} {[%emt 00:03:46]} Bd7 {[%clk 00:40:23]} {[%emt 00:00:55]} 10.
Bxe7 {[%clk 00:38:45]} {[%emt 00:00:23]} Bxc3+ {[%clk 00:40:22]} {[%emt
00:00:30]} 11. bxc3 {[%clk 00:38:58]} {[%emt 00:00:17]} Qxe7 {[%clk 00:40:37]}
{[%emt 00:00:15]} 12. Bxc6 {[%clk 00:38:43]} {[%emt 00:00:46]} Bxc6 {[%clk
00:40:59]} {[%emt 00:00:08]} 13. Qb4 {[%clk 00:38:50]} {[%emt 00:00:23]} Qc7
{[%clk 00:40:56]} {[%emt 00:00:32]} 14. O-O {[%clk 00:37:28]} {[%emt 00:01:53]}
a5 {[%clk 00:40:52]} {[%emt 00:00:33]} 15. Qb2 {[%clk 00:35:43]} {[%emt
00:02:15]} O-O {[%clk 00:40:00]} {[%emt 00:01:21]} 16. Rab1 {[%clk 00:35:01]}
{[%emt 00:01:14]} Rfc8 {[%clk 00:38:05]} {[%emt 00:02:25]} 17. Qb6 {[%clk
00:34:41]} {[%emt 00:00:50]} Qxb6 {[%clk 00:36:53]} {[%emt 00:01:41]} 18. Rxb6
{[%clk 00:35:05]} {[%emt 00:00:07]} Ra7 {[%clk 00:36:21]} {[%emt 00:01:02]} 19.
Rfb1 {[%clk 00:34:57]} {[%emt 00:00:37]} h6 {[%clk 00:35:08]} {[%emt 00:01:43]}
20. h3 {[%clk 00:32:14]} {[%emt 00:03:13]} Ba4 {[%clk 00:31:10]} {[%emt
00:04:29]} 21. Rxb7 {[%clk 00:31:43]} {[%emt 00:01:01]} Rxb7 {[%clk 00:30:26]}
{[%emt 00:01:14]} 22. Rxb7 {[%clk 00:32:11]} {[%emt 00:00:02]} Rxc3 {[%clk
00:30:27]} {[%emt 00:00:28]} 23. Rb8+ {[%clk 00:32:04]} {[%emt 00:00:37]} Kh7
{[%clk 00:30:21]} {[%emt 00:00:37]} 24. Ra8 {[%clk 00:32:13]} {[%emt 00:00:21]}
Rxc2 {[%clk 00:30:21]} {[%emt 00:00:30]} 25. Rxa5 {[%clk 00:32:35]} {[%emt
00:00:08]} Rxa2 {[%clk 00:30:31]} {[%emt 00:00:20]} 26. Ra7 {[%clk 00:33:01]}
{[%emt 00:00:04]} Kg6 {[%clk 00:26:33]} {[%emt 00:04:27]} 27. Nh4+ {[%clk
00:33:11]} {[%emt 00:00:18]} Kh7 {[%clk 00:25:43]} {[%emt 00:01:22]} 28. Nf3
{[%clk 00:33:06]} {[%emt 00:00:35]} 1/2-1/2